[Event "Titled Tuesday Blitz December 14 2021"]
[White "Korkmaz, Necmettin"]
[Black "Gonzalez, Francisco Silva"]
[WhiteFideId "6303285"]
[BlackFideId "1512285"]
[WhiteElo "2094"]
[BlackElo "2159"]
[Result "1-0"]
[Round "04"]
[TimeControl "180+1"]
[Date "2021.12.15"]
[WhiteClock "0:00:05"]
[BlackClock "0:00:08"]

1. d4 {[%clk 0:03:00]}  Nf6 {[%clk 0:02:52]} 2. c4 {[%clk 0:03:00]}  e6 {[%clk 0:02:52]} 3. Nf3 {[%clk 0:02:57]}  d5 {[%clk 0:02:50]} 4. e3 {[%clk 0:02:51]}  a6 {[%clk 0:02:48]} 5. Nc3 {[%clk 0:02:44]}  dxc4 {[%clk 0:02:41]} 6. Bxc4 {[%clk 0:02:43]}  b5 {[%clk 0:02:42]} 7. Be2 {[%clk 0:02:41]}  Bb7 {[%clk 0:02:42]} 8. O-O {[%clk 0:02:41]}  Nbd7 {[%clk 0:02:40]} 9. b3 {[%clk 0:02:29]}  c5 {[%clk 0:02:40]} 10. Bb2 {[%clk 0:02:27]}  Rc8 {[%clk 0:02:39]} 11. Rc1 {[%clk 0:02:18]}  Be7 {[%clk 0:02:38]} 12. Ne5 {[%clk 0:02:12]}  cxd4 {[%clk 0:02:37]} 13. exd4 {[%clk 0:02:09]}  Nxe5 {[%clk 0:02:36]} 14. dxe5 {[%clk 0:02:09]}  Nd7 {[%clk 0:02:36]} 15. Bf3 {[%clk 0:02:06]}  Qb6 {[%clk 0:02:34]} 16. Ne4 {[%clk 0:01:54]}  Rxc1 {[%clk 0:02:25]} 17. Qxc1 {[%clk 0:01:50]}  O-O {[%clk 0:02:20]} 18. Rd1 {[%clk 0:01:48]}  Bxe4 {[%clk 0:02:15]} 19. Bxe4 {[%clk 0:01:48]}  Nc5 {[%clk 0:02:15]} 20. Bb1 {[%clk 0:01:47]}  g6 {[%clk 0:02:13]} 21. Bd4 {[%clk 0:01:43]}  b4 {[%clk 0:02:09]} 22. Qe3 {[%clk 0:01:39]}  Rd8 {[%clk 0:02:07]} 23. Rc1 {[%clk 0:01:35]}  Qb5 {[%clk 0:02:07]} 24. g3 {[%clk 0:01:33]}  Nd7 {[%clk 0:02:03]} 25. Be4 {[%clk 0:01:20]}  Nf8 {[%clk 0:02:01]} 26. Bc6 {[%clk 0:01:07]}  Qb8 {[%clk 0:01:59]} 27. Ba7 {[%clk 0:01:03]}  Qc8 {[%clk 0:01:49]} 28. Bb6 {[%clk 0:01:02]}  h5 {[%clk 0:01:38]} 29. Bxd8 {[%clk 0:01:01]}  Qxd8 {[%clk 0:01:39]} 30. Bb7 {[%clk 0:01:00]}  Qa5 {[%clk 0:01:35]} 31. Qf4 {[%clk 0:00:45]}  Qb6 {[%clk 0:01:29]} 32. Be4 {[%clk 0:00:43]}  Qd4 {[%clk 0:01:27]} 33. Rc7 {[%clk 0:00:37]}  Qd8 {[%clk 0:01:26]} 34. Ra7 {[%clk 0:00:36]}  a5 {[%clk 0:01:27]} 35. Ra8 {[%clk 0:00:35]}  Qd4 {[%clk 0:01:24]} 36. Rxa5 {[%clk 0:00:31]}  Kg7 {[%clk 0:01:22]} 37. h4 {[%clk 0:00:29]}  Qd1+ {[%clk 0:01:20]} 38. Kg2 {[%clk 0:00:29]}  Qd8 {[%clk 0:01:21]} 39. Ra7 {[%clk 0:00:28]}  Kg8 {[%clk 0:01:19]} 40. Qe3 {[%clk 0:00:23]}  Nh7 {[%clk 0:01:12]} 41. Qh6 {[%clk 0:00:21]}  Bf8 {[%clk 0:01:11]} 42. Qf4 {[%clk 0:00:20]}  Qe8 {[%clk 0:01:09]} 43. Ra8 {[%clk 0:00:19]}  Qe7 {[%clk 0:01:09]} 44. Qh6 {[%clk 0:00:19]}  Qc5 {[%clk 0:01:04]} 45. Bxg6 {[%clk 0:00:18]}  fxg6 {[%clk 0:01:03]} 46. Qxg6+ {[%clk 0:00:18]}  Kh8 {[%clk 0:01:03]} 47. Re8 {[%clk 0:00:16]}  Qc6+ {[%clk 0:01:02]} 48. Kh2 {[%clk 0:00:16]}  Qc5 {[%clk 0:00:59]} 49. Qf7 {[%clk 0:00:16]}  Qxe5 {[%clk 0:00:34]} 50. Rxf8+ {[%clk 0:00:14]}  Nxf8 {[%clk 0:00:34]} 51. Qxf8+ {[%clk 0:00:15]}  Kh7 {[%clk 0:00:34]} 52. Qf4 {[%clk 0:00:15]}  Qc5 {[%clk 0:00:32]} 53. Qe3 {[%clk 0:00:14]}  Qd6 {[%clk 0:00:31]} 54. Qe4+ {[%clk 0:00:14]}  Kg7 {[%clk 0:00:29]} 55. Qf4 {[%clk 0:00:14]}  Qb6 {[%clk 0:00:25]} 56. Qg5+ {[%clk 0:00:14]}  Kf8 {[%clk 0:00:24]} 57. Qf6+ {[%clk 0:00:14]}  Ke8 {[%clk 0:00:23]} 58. Qh8+ {[%clk 0:00:14]}  Ke7 {[%clk 0:00:23]} 59. Qg7+ {[%clk 0:00:14]}  Ke8 {[%clk 0:00:23]} 60. Qf6 {[%clk 0:00:13]}  Kd7 {[%clk 0:00:23]} 61. Qf4 {[%clk 0:00:13]}  Ke7 {[%clk 0:00:23]} 62. g4 {[%clk 0:00:10]}  hxg4 {[%clk 0:00:21]} 63. h5 {[%clk 0:00:11]}  Qc5 {[%clk 0:00:17]} 64. h6 {[%clk 0:00:09]}  Qh5+ {[%clk 0:00:16]} 65. Kg1 {[%clk 0:00:10]}  g3 {[%clk 0:00:16]} 66. fxg3 {[%clk 0:00:10]}  Qd1+ {[%clk 0:00:16]} 67. Kg2 {[%clk 0:00:10]}  Qe2+ {[%clk 0:00:16]} 68. Kh3 {[%clk 0:00:11]}  Qd3 {[%clk 0:00:14]} 69. Qg5+ {[%clk 0:00:11]}  Kd7 {[%clk 0:00:14]} 70. Kh4 {[%clk 0:00:08]}  Qe4+ {[%clk 0:00:13]} 71. Kh5 {[%clk 0:00:08]}  Qf3+ {[%clk 0:00:14]} 72. Kg6 {[%clk 0:00:09]}  Ke8 {[%clk 0:00:13]} 73. h7 {[%clk 0:00:08]}  Qf7+ {[%clk 0:00:13]} 74. Kh6 {[%clk 0:00:09]}  Qf8+ {[%clk 0:00:13]} 75. Kh5 {[%clk 0:00:09]}  Qf3+ {[%clk 0:00:12]} 76. g4 {[%clk 0:00:10]}  Qh3+ {[%clk 0:00:12]} 77. Kg6 {[%clk 0:00:10]}  Qd3+ {[%clk 0:00:12]} 78. Kg7 {[%clk 0:00:10]}  Qd7+ {[%clk 0:00:12]} 79. Kg8 {[%clk 0:00:10]}  Qf7+ {[%clk 0:00:12]} 80. Kh8 {[%clk 0:00:11]}  Kd7 {[%clk 0:00:12]} 81. Qg7 {[%clk 0:00:11]}  Qxg7+ {[%clk 0:00:10]} 82. Kxg7 {[%clk 0:00:11]}  e5 {[%clk 0:00:10]} 83. h8=Q {[%clk 0:00:11]}  Kd6 {[%clk 0:00:11]} 84. Qe8 {[%clk 0:00:10]}  Kd5 {[%clk 0:00:11]} 85. Kf6 {[%clk 0:00:10]}  e4 {[%clk 0:00:11]} 86. Qe5+ {[%clk 0:00:10]}  Kc6 {[%clk 0:00:11]} 87. Qxe4+ {[%clk 0:00:10]}  Kc5 {[%clk 0:00:11]} 88. Qc4+ {[%clk 0:00:09]}  Kd6 {[%clk 0:00:11]} 89. Qxb4+ {[%clk 0:00:09]}  Kd5 {[%clk 0:00:12]} 90. Qc4+ {[%clk 0:00:09]}  Kd6 {[%clk 0:00:12]} 91. a4 {[%clk 0:00:07]}  Kd7 {[%clk 0:00:12]} 92. Qd5+ {[%clk 0:00:07]}  Kc7 {[%clk 0:00:12]} 93. Qc5+ {[%clk 0:00:06]}  Kb7 {[%clk 0:00:13]} 94. Ke7 {[%clk 0:00:06]}  Ka6 {[%clk 0:00:12]} 95. Qc4+ {[%clk 0:00:06]}  Kb7 {[%clk 0:00:12]} 96. Qb5+ {[%clk 0:00:06]}  Kc7 {[%clk 0:00:12]} 97. Qd7+ {[%clk 0:00:06]}  Kb6 {[%clk 0:00:12]} 98. g5 {[%clk 0:00:05]}  Ka6 {[%clk 0:00:12]} 99. Qb5+ {[%clk 0:00:04]}  Ka7 {[%clk 0:00:12]} 100. Kd7 {[%clk 0:00:05]}  Ka8 {[%clk 0:00:12]} 101. Kc7 {[%clk 0:00:05]}  Ka7 {[%clk 0:00:08]} 102. Qb7# {[%clk 0:00:05]} 1-0


[Site "https://www.chess.com"]

[Event "Titled Tuesday Blitz December 14 2021"]
[White "Lazavik, Denis"]
[Black "Donchenko, Alexander"]
[WhiteFideId "13515110"]
[BlackFideId "24603295"]
[WhiteElo "2942"]
[BlackElo "2779"]
[Result "1/2-1/2"]
[Round "04"]
[TimeControl "180+1"]
[Date "2021.12.14"]
[WhiteClock "0:00:07"]
[BlackClock "0:00:08"]

1. d4 {[%clk 0:02:59]}  Nf6 {[%clk 0:02:59]} 2. c4 {[%clk 0:02:59]}  e6 {[%clk 0:03:00]} 3. Nf3 {[%clk 0:02:59]}  d5 {[%clk 0:02:59]} 4. g3 {[%clk 0:03:00]}  Bb4+ {[%clk 0:02:59]} 5. Bd2 {[%clk 0:03:00]}  Bd6 {[%clk 0:02:59]} 6. Nc3 {[%clk 0:02:46]}  O-O {[%clk 0:02:57]} 7. Qc2 {[%clk 0:02:44]}  Nbd7 {[%clk 0:02:39]} 8. e4 {[%clk 0:02:33]}  Nxe4 {[%clk 0:02:37]} 9. Nxe4 {[%clk 0:02:34]}  dxe4 {[%clk 0:02:37]} 10. Qxe4 {[%clk 0:02:35]}  e5 {[%clk 0:02:30]} 11. dxe5 {[%clk 0:02:18]}  Nxe5 {[%clk 0:02:23]} 12. O-O-O {[%clk 0:02:13]}  Qf6 {[%clk 0:02:03]} 13. Nh4 {[%clk 0:01:11]}  Bd7 {[%clk 0:01:35]} 14. f4 {[%clk 0:00:43]}  Bc6 {[%clk 0:01:30]} 15. fxe5 {[%clk 0:00:43]}  Bxe4 {[%clk 0:01:31]} 16. exf6 {[%clk 0:00:43]}  Bxh1 {[%clk 0:01:31]} 17. fxg7 {[%clk 0:00:43]}  Rfe8 {[%clk 0:01:15]} 18. Bc3 {[%clk 0:00:33]}  Be5 {[%clk 0:01:07]} 19. Bxe5 {[%clk 0:00:19]}  Rxe5 {[%clk 0:01:08]} 20. Bd3 {[%clk 0:00:19]}  Be4 {[%clk 0:01:05]} 21. Bxe4 {[%clk 0:00:16]}  Rxe4 {[%clk 0:01:06]} 22. Nf5 {[%clk 0:00:16]}  Rxc4+ {[%clk 0:00:58]} 23. Kb1 {[%clk 0:00:16]}  Re8 {[%clk 0:00:59]} 24. a3 {[%clk 0:00:12]}  h5 {[%clk 0:00:55]} 25. h3 {[%clk 0:00:08]}  Kh7 {[%clk 0:00:36]} 26. Rd7 {[%clk 0:00:04]}  Kg6 {[%clk 0:00:36]} 27. g8=Q+ {[%clk 0:00:04]}  Rxg8 {[%clk 0:00:36]} 28. Ne7+ {[%clk 0:00:05]}  Kg7 {[%clk 0:00:37]} 29. Nxg8 {[%clk 0:00:05]}  Kxg8 {[%clk 0:00:37]} 30. Rd5 {[%clk 0:00:06]}  h4 {[%clk 0:00:37]} 31. g4 {[%clk 0:00:05]}  Kg7 {[%clk 0:00:22]} 32. Rh5 {[%clk 0:00:05]}  Re4 {[%clk 0:00:18]} 33. Rxh4 {[%clk 0:00:03]}  f5 {[%clk 0:00:19]} 34. Rh5 {[%clk 0:00:02]}  fxg4 {[%clk 0:00:18]} 35. hxg4 {[%clk 0:00:03]}  Rxg4 {[%clk 0:00:18]} 36. Rd5 {[%clk 0:00:03]}  Rf4 {[%clk 0:00:16]} 37. Rd8 {[%clk 0:00:03]}  Rf7 {[%clk 0:00:15]} 38. Ra8 {[%clk 0:00:02]}  a6 {[%clk 0:00:14]} 39. Ra7 {[%clk 0:00:02]}  c6 {[%clk 0:00:14]} 40. Ra8 {[%clk 0:00:03]}  Kf6 {[%clk 0:00:14]} 41. Re8 {[%clk 0:00:03]}  Re7 {[%clk 0:00:15]} 42. Rf8+ {[%clk 0:00:03]}  Ke6 {[%clk 0:00:15]} 43. Kc2 {[%clk 0:00:04]}  Kd6 {[%clk 0:00:16]} 44. Kc3 {[%clk 0:00:04]}  Kc5 {[%clk 0:00:16]} 45. Rf5+ {[%clk 0:00:04]}  Kb6 {[%clk 0:00:16]} 46. Rf3 {[%clk 0:00:05]}  Re5 {[%clk 0:00:16]} 47. b3 {[%clk 0:00:05]}  a5 {[%clk 0:00:17]} 48. a4 {[%clk 0:00:05]}  Rh5 {[%clk 0:00:16]} 49. Rg3 {[%clk 0:00:06]}  Kc5 {[%clk 0:00:17]} 50. Rf3 {[%clk 0:00:06]}  Kd5 {[%clk 0:00:17]} 51. Rd3+ {[%clk 0:00:06]}  Kc5 {[%clk 0:00:14]} 52. Rg3 {[%clk 0:00:06]}  Rf5 {[%clk 0:00:14]} 53. Rd3 {[%clk 0:00:06]}  Rf7 {[%clk 0:00:14]} 54. Rh3 {[%clk 0:00:06]}  b6 {[%clk 0:00:13]} 55. Rh5+ {[%clk 0:00:06]}  Kd6 {[%clk 0:00:13]} 56. Rh6+ {[%clk 0:00:07]}  Kd5 {[%clk 0:00:14]} 57. Rh5+ {[%clk 0:00:07]}  Ke6 {[%clk 0:00:14]} 58. Rh6+ {[%clk 0:00:07]}  Rf6 {[%clk 0:00:15]} 59. Rh3 {[%clk 0:00:07]}  Kd5 {[%clk 0:00:14]} 60. Rg3 {[%clk 0:00:07]}  Ke4 {[%clk 0:00:15]} 61. Rg4+ {[%clk 0:00:07]}  Ke5 {[%clk 0:00:12]} 62. Rg5+ {[%clk 0:00:08]}  Rf5 {[%clk 0:00:12]} 63. Rg3 {[%clk 0:00:07]}  Rf6 {[%clk 0:00:12]} 64. Rg5+ {[%clk 0:00:07]}  Kd6 {[%clk 0:00:12]} 65. Rg3 {[%clk 0:00:07]}  Rf5 {[%clk 0:00:12]} 66. Rh3 {[%clk 0:00:07]}  Kc5 {[%clk 0:00:12]} 67. Rg3 {[%clk 0:00:08]}  Re5 {[%clk 0:00:12]} 68. Rh3 {[%clk 0:00:08]}  Rg5 {[%clk 0:00:13]} 69. Rf3 {[%clk 0:00:08]}  b5 {[%clk 0:00:13]} 70. axb5 {[%clk 0:00:09]}  cxb5 {[%clk 0:00:14]} 71. Rh3 {[%clk 0:00:06]}  b4+ {[%clk 0:00:10]} 72. Kb2 {[%clk 0:00:06]}  Re5 {[%clk 0:00:09]} 73. Rh2 {[%clk 0:00:04]}  Kd4 {[%clk 0:00:09]} 74. Kc2 {[%clk 0:00:04]}  Rc5+ {[%clk 0:00:06]} 75. Kb2 {[%clk 0:00:04]}  Rf5 {[%clk 0:00:05]} 76. Kc2 {[%clk 0:00:04]}  Ke3 {[%clk 0:00:06]} 77. Rh3+ {[%clk 0:00:04]}  Rf3 {[%clk 0:00:06]} 78. Rh5 {[%clk 0:00:04]}  Rf2+ {[%clk 0:00:06]} 79. Kb1 {[%clk 0:00:03]}  Kd3 {[%clk 0:00:06]} 80. Rxa5 {[%clk 0:00:03]}  Kc3 {[%clk 0:00:06]} 81. Rc5+ {[%clk 0:00:04]}  Kxb3 {[%clk 0:00:06]} 82. Rc1 {[%clk 0:00:04]}  Ka3 {[%clk 0:00:05]} 83. Rh1 {[%clk 0:00:04]}  Kb3 {[%clk 0:00:04]} 84. Rh3+ {[%clk 0:00:04]}  Ka4 {[%clk 0:00:05]} 85. Rh1 {[%clk 0:00:04]}  Rg2 {[%clk 0:00:05]} 86. Rc1 {[%clk 0:00:05]}  b3 {[%clk 0:00:05]} 87. Rh1 {[%clk 0:00:06]}  Ka3 {[%clk 0:00:06]} 88. Rc1 {[%clk 0:00:06]}  Rb2+ {[%clk 0:00:06]} 89. Ka1 {[%clk 0:00:06]}  Rc2 {[%clk 0:00:07]} 90. Rh1 {[%clk 0:00:06]}  Ra2+ {[%clk 0:00:06]} 91. Kb1 {[%clk 0:00:06]}  Rg2 {[%clk 0:00:07]} 92. Ka1 {[%clk 0:00:06]}  Ka4 {[%clk 0:00:07]} 93. Kb1 {[%clk 0:00:07]}  Ka3 {[%clk 0:00:08]} 1/2-1/2


[Site "https://www.chess.com"]

[Event "Titled Tuesday Blitz December 14 2021"]
[White "Leiva, Gianmarco"]
[Black "Kamsky, Gata"]
[WhiteFideId "3804399"]
[BlackFideId "2000024"]
[WhiteElo "2328"]
[BlackElo "2645"]
[Result "0-1"]
[Round "04"]
[TimeControl "180+1"]
[Date "2021.12.14"]
[WhiteClock "0:00:17"]
[BlackClock "0:01:19"]

1. e4 {[%clk 0:03:00]}  c5 {[%clk 0:02:58]} 2. Nf3 {[%clk 0:03:00]}  e6 {[%clk 0:02:52]} 3. g3 {[%clk 0:02:59]}  d6 {[%clk 0:02:47]} 4. Bg2 {[%clk 0:02:58]}  e5 {[%clk 0:02:47]} 5. O-O {[%clk 0:02:56]}  Nf6 {[%clk 0:02:47]} 6. c3 {[%clk 0:02:55]}  Be7 {[%clk 0:02:41]} 7. d4 {[%clk 0:02:55]}  Nc6 {[%clk 0:02:38]} 8. dxe5 {[%clk 0:02:40]}  dxe5 {[%clk 0:02:36]} 9. Qc2 {[%clk 0:02:37]}  h6 {[%clk 0:02:32]} 10. Rd1 {[%clk 0:02:24]}  Qc7 {[%clk 0:02:30]} 11. Na3 {[%clk 0:02:23]}  O-O {[%clk 0:02:29]} 12. Nc4 {[%clk 0:02:20]}  Be6 {[%clk 0:02:25]} 13. Ne3 {[%clk 0:02:19]}  Rfd8 {[%clk 0:02:23]} 14. Bd2 {[%clk 0:02:02]}  c4 {[%clk 0:02:20]} 15. Nf5 {[%clk 0:02:01]}  Bc5 {[%clk 0:02:17]} 16. b4 {[%clk 0:01:17]}  cxb3 {[%clk 0:02:16]} 17. axb3 {[%clk 0:01:18]}  Qb6 {[%clk 0:02:09]} 18. b4 {[%clk 0:01:06]}  Bxf2+ {[%clk 0:02:08]} 19. Kh1 {[%clk 0:01:07]}  Bxf5 {[%clk 0:02:05]} 20. exf5 {[%clk 0:01:07]}  e4 {[%clk 0:02:04]} 21. Nh4 {[%clk 0:01:01]}  e3 {[%clk 0:02:04]} 22. Be1 {[%clk 0:00:59]}  Bxe1 {[%clk 0:02:00]} 23. Rxe1 {[%clk 0:00:59]}  Rd2 {[%clk 0:02:00]} 24. Qb3 {[%clk 0:00:57]}  Ne5 {[%clk 0:01:55]} 25. c4 {[%clk 0:00:40]}  Nfg4 {[%clk 0:01:31]} 26. c5 {[%clk 0:00:36]}  Qf6 {[%clk 0:01:30]} 27. Bxb7 {[%clk 0:00:33]}  Rxh2+ {[%clk 0:01:27]} 28. Kg1 {[%clk 0:00:32]}  Rd8 {[%clk 0:01:24]} 29. Bg2 {[%clk 0:00:25]}  Rxh4 {[%clk 0:01:23]} 30. gxh4 {[%clk 0:00:17]}  Qxh4 {[%clk 0:01:23]} 31. Rad1 {[%clk 0:00:17]}  Rd2 {[%clk 0:01:19]} 0-1


[Site "https://www.chess.com"]

[Event "Titled Tuesday Blitz December 14 2021"]
[White "Makhnev, Denis"]
[Black "Ovetchkin, Roman"]
[WhiteFideId "13707647"]
[BlackFideId "4119991"]
[WhiteElo "2491"]
[BlackElo "2432"]
[Result "0-1"]
[Round "04"]
[TimeControl "180+1"]
[Date "2021.12.15"]
[WhiteClock "0:00:07"]
[BlackClock "0:00:09"]

1. d4 {[%clk 0:03:00]}  Nf6 {[%clk 0:02:59]} 2. c4 {[%clk 0:03:00]}  g6 {[%clk 0:02:59]} 3. g3 {[%clk 0:03:00]}  Bg7 {[%clk 0:02:58]} 4. Bg2 {[%clk 0:03:00]}  O-O {[%clk 0:02:59]} 5. Nc3 {[%clk 0:03:00]}  d6 {[%clk 0:02:59]} 6. Nf3 {[%clk 0:03:01]}  c6 {[%clk 0:02:59]} 7. O-O {[%clk 0:03:01]}  Bf5 {[%clk 0:02:59]} 8. Ng5 {[%clk 0:02:57]}  d5 {[%clk 0:02:52]} 9. Qb3 {[%clk 0:02:52]}  Qb6 {[%clk 0:02:51]} 10. cxd5 {[%clk 0:02:21]}  Qxb3 {[%clk 0:02:45]} 11. axb3 {[%clk 0:02:21]}  cxd5 {[%clk 0:02:45]} 12. Nxd5 {[%clk 0:02:22]}  Nxd5 {[%clk 0:02:45]} 13. Bxd5 {[%clk 0:02:22]}  Nc6 {[%clk 0:02:46]} 14. e3 {[%clk 0:02:08]}  h6 {[%clk 0:02:17]} 15. Nf3 {[%clk 0:01:28]}  Rfd8 {[%clk 0:02:15]} 16. Bc4 {[%clk 0:01:27]}  e5 {[%clk 0:02:00]} 17. Nh4 {[%clk 0:01:04]}  Bh3 {[%clk 0:01:44]} 18. Rd1 {[%clk 0:01:04]}  g5 {[%clk 0:01:35]} 19. Ng2 {[%clk 0:00:36]}  exd4 {[%clk 0:01:34]} 20. exd4 {[%clk 0:00:37]}  Nxd4 {[%clk 0:01:32]} 21. Be3 {[%clk 0:00:37]}  Nf3+ {[%clk 0:01:23]} 22. Kh1 {[%clk 0:00:36]}  Bxb2 {[%clk 0:01:22]} 23. Rab1 {[%clk 0:00:36]}  Bd4 {[%clk 0:01:15]} 24. Bxd4 {[%clk 0:00:32]}  Nxd4 {[%clk 0:01:15]} 25. Ne3 {[%clk 0:00:31]}  Rac8 {[%clk 0:01:06]} 26. Bd5 {[%clk 0:00:29]}  Nc6 {[%clk 0:00:56]} 27. b4 {[%clk 0:00:23]}  Be6 {[%clk 0:00:47]} 28. b5 {[%clk 0:00:21]}  Na5 {[%clk 0:00:42]} 29. Bxe6 {[%clk 0:00:21]}  fxe6 {[%clk 0:00:42]} 30. Kg2 {[%clk 0:00:21]}  Kg7 {[%clk 0:00:38]} 31. Kf3 {[%clk 0:00:21]}  h5 {[%clk 0:00:37]} 32. Ke4 {[%clk 0:00:20]}  Kf6 {[%clk 0:00:37]} 33. g4 {[%clk 0:00:13]}  hxg4 {[%clk 0:00:17]} 34. Nxg4+ {[%clk 0:00:13]}  Ke7 {[%clk 0:00:18]} 35. Ne5 {[%clk 0:00:13]}  Rxd1 {[%clk 0:00:15]} 36. Rxd1 {[%clk 0:00:13]}  Rc7 {[%clk 0:00:15]} 37. f4 {[%clk 0:00:11]}  gxf4 {[%clk 0:00:14]} 38. Kxf4 {[%clk 0:00:12]}  Nb3 {[%clk 0:00:13]} 39. h4 {[%clk 0:00:10]}  Kf6 {[%clk 0:00:08]} 40. Rg1 {[%clk 0:00:10]}  Rg7 {[%clk 0:00:07]} 41. Ng4+ {[%clk 0:00:08]}  Ke7 {[%clk 0:00:07]} 42. h5 {[%clk 0:00:08]}  Nc5 {[%clk 0:00:07]} 43. h6 {[%clk 0:00:08]}  Rf7+ {[%clk 0:00:06]} 44. Kg5 {[%clk 0:00:08]}  Nd7 {[%clk 0:00:06]} 45. Rh1 {[%clk 0:00:06]}  Nf8 {[%clk 0:00:06]} 46. Ne5 {[%clk 0:00:07]}  Rf5+ {[%clk 0:00:06]} 47. Kg4 {[%clk 0:00:07]}  Rxe5 {[%clk 0:00:06]} 48. h7 {[%clk 0:00:08]}  Ng6 {[%clk 0:00:06]} 49. h8=Q {[%clk 0:00:03]}  Nxh8 {[%clk 0:00:06]} 50. Rxh8 {[%clk 0:00:04]}  Rxb5 {[%clk 0:00:06]} 51. Rb8 {[%clk 0:00:05]}  Kd6 {[%clk 0:00:07]} 52. Kf4 {[%clk 0:00:05]}  a5 {[%clk 0:00:07]} 53. Ke4 {[%clk 0:00:05]}  Rb4+ {[%clk 0:00:08]} 54. Kd3 {[%clk 0:00:05]}  a4 {[%clk 0:00:09]} 55. Rd8+ {[%clk 0:00:06]}  Ke5 {[%clk 0:00:08]} 56. Ra8 {[%clk 0:00:07]}  Rb3+ {[%clk 0:00:08]} 57. Kc4 {[%clk 0:00:07]}  b5+ {[%clk 0:00:09]} 58. Kc5 {[%clk 0:00:07]}  a3 {[%clk 0:00:09]} 59. Ra5 {[%clk 0:00:08]}  Ke4 {[%clk 0:00:08]} 60. Ra6 {[%clk 0:00:08]}  e5 {[%clk 0:00:08]} 61. Ra5 {[%clk 0:00:07]}  b4 {[%clk 0:00:08]} 62. Ra4 {[%clk 0:00:07]}  Rb2 {[%clk 0:00:09]} 63. Kc4 {[%clk 0:00:07]}  Ke3 {[%clk 0:00:09]} 64. Kd5 {[%clk 0:00:07]}  e4 {[%clk 0:00:09]} 0-1


[Site "https://www.chess.com"]

[Event "Titled Tuesday Blitz December 14 2021"]
[White "Maly, Alexey"]
[Black "Vachier-Lagrave, Maxime"]
[WhiteFideId "14103184"]
[BlackFideId "623539"]
[WhiteElo "2827"]
[BlackElo "3079"]
[Result "1-0"]
[Round "04"]
[TimeControl "180+1"]
[Date "2021.12.14"]
[WhiteClock "0:00:09"]
[BlackClock "0:00:17"]

1. d4 {[%clk 0:03:00]}  Nf6 {[%clk 0:02:55]} 2. c4 {[%clk 0:03:01]}  g6 {[%clk 0:02:54]} 3. Nc3 {[%clk 0:03:01]}  d5 {[%clk 0:02:55]} 4. cxd5 {[%clk 0:03:02]}  Nxd5 {[%clk 0:02:56]} 5. e4 {[%clk 0:03:02]}  Nxc3 {[%clk 0:02:56]} 6. bxc3 {[%clk 0:03:03]}  Bg7 {[%clk 0:02:57]} 7. Nf3 {[%clk 0:03:04]}  c5 {[%clk 0:02:57]} 8. Be3 {[%clk 0:03:04]}  Qa5 {[%clk 0:02:56]} 9. Qd2 {[%clk 0:03:04]}  Nc6 {[%clk 0:02:53]} 10. Rc1 {[%clk 0:03:04]}  cxd4 {[%clk 0:02:43]} 11. cxd4 {[%clk 0:03:05]}  Qxd2+ {[%clk 0:02:43]} 12. Kxd2 {[%clk 0:03:06]}  O-O {[%clk 0:02:43]} 13. d5 {[%clk 0:03:06]}  Rd8 {[%clk 0:02:44]} 14. Ke1 {[%clk 0:03:07]}  Na5 {[%clk 0:02:44]} 15. Bg5 {[%clk 0:03:07]}  Bd7 {[%clk 0:02:09]} 16. Bd3 {[%clk 0:03:07]}  Rdc8 {[%clk 0:01:52]} 17. Ke2 {[%clk 0:03:06]}  e6 {[%clk 0:01:52]} 18. Rxc8+ {[%clk 0:03:04]}  Rxc8 {[%clk 0:01:52]} 19. Rc1 {[%clk 0:03:05]}  Rxc1 {[%clk 0:01:50]} 20. Bxc1 {[%clk 0:03:06]}  exd5 {[%clk 0:01:49]} 21. exd5 {[%clk 0:03:07]}  b6 {[%clk 0:01:49]} 22. Be3 {[%clk 0:03:04]}  Nb7 {[%clk 0:01:48]} 23. Nd4 {[%clk 0:02:59]}  Bxd4 {[%clk 0:01:44]} 24. Bxd4 {[%clk 0:02:59]}  Kf8 {[%clk 0:01:45]} 25. Bf6 {[%clk 0:02:54]}  Nc5 {[%clk 0:01:41]} 26. Ke3 {[%clk 0:02:49]}  Ke8 {[%clk 0:01:36]} 27. Kd4 {[%clk 0:02:45]}  Ba4 {[%clk 0:01:30]} 28. Be2 {[%clk 0:02:34]}  Kd7 {[%clk 0:01:23]} 29. Bg4+ {[%clk 0:02:27]}  Kc7 {[%clk 0:01:23]} 30. Be5+ {[%clk 0:02:25]}  Kb7 {[%clk 0:01:21]} 31. Bd6 {[%clk 0:02:18]}  f5 {[%clk 0:01:18]} 32. Bf3 {[%clk 0:02:12]}  Nd7 {[%clk 0:01:17]} 33. h4 {[%clk 0:02:06]}  a5 {[%clk 0:01:13]} 34. h5 {[%clk 0:02:02]}  Bc2 {[%clk 0:01:06]} 35. h6 {[%clk 0:01:49]}  b5 {[%clk 0:01:05]} 36. g4 {[%clk 0:01:44]}  b4 {[%clk 0:00:54]} 37. Be2 {[%clk 0:01:34]}  Kb6 {[%clk 0:00:53]} 38. Be7 {[%clk 0:01:31]}  Kc7 {[%clk 0:00:48]} 39. g5 {[%clk 0:01:25]}  Bb1 {[%clk 0:00:44]} 40. Bc4 {[%clk 0:01:21]}  Nb6 {[%clk 0:00:41]} 41. d6+ {[%clk 0:00:42]}  Kd7 {[%clk 0:00:42]} 42. Bb5+ {[%clk 0:00:37]}  Ke6 {[%clk 0:00:41]} 43. Be8 {[%clk 0:00:26]}  f4 {[%clk 0:00:37]} 44. Kc5 {[%clk 0:00:19]}  Nd7+ {[%clk 0:00:23]} 45. Kc6 {[%clk 0:00:16]}  Ne5+ {[%clk 0:00:19]} 46. Kc7 {[%clk 0:00:17]}  Bxa2 {[%clk 0:00:17]} 47. Bf6 {[%clk 0:00:14]}  b3 {[%clk 0:00:17]} 48. Bxe5 {[%clk 0:00:12]}  Kxe5 {[%clk 0:00:17]} 49. Bf7 {[%clk 0:00:11]}  a4 {[%clk 0:00:15]} 50. d7 {[%clk 0:00:11]}  Ke4 {[%clk 0:00:16]} 51. d8=Q {[%clk 0:00:11]}  Kf3 {[%clk 0:00:17]} 52. Qd3+ {[%clk 0:00:09]}  Kxf2 {[%clk 0:00:17]} 53. Bd5 {[%clk 0:00:09]} 1-0


[Site "https://www.chess.com"]

[Event "Titled Tuesday Blitz December 14 2021"]
[White "Martins, Bruno Andre Leite"]
[Black "Samsonkin, Artiom"]
[WhiteFideId "1942255"]
[BlackFideId "13503111"]
[WhiteElo "2137"]
[BlackElo "2513"]
[Result "1-0"]
[Round "04"]
[TimeControl "180+1"]
[Date "2021.12.14"]
[WhiteClock "0:01:26"]
[BlackClock "0:00:05"]

1. e4 {[%clk 0:03:00]}  c5 {[%clk 0:02:57]} 2. Nf3 {[%clk 0:03:00]}  d6 {[%clk 0:02:58]} 3. d4 {[%clk 0:03:00]}  cxd4 {[%clk 0:02:58]} 4. Nxd4 {[%clk 0:03:01]}  Nf6 {[%clk 0:02:59]} 5. Nc3 {[%clk 0:03:01]}  a6 {[%clk 0:03:00]} 6. Bd3 {[%clk 0:03:02]}  g6 {[%clk 0:02:55]} 7. O-O {[%clk 0:03:01]}  Bg7 {[%clk 0:02:55]} 8. Re1 {[%clk 0:03:02]}  O-O {[%clk 0:02:55]} 9. Bf1 {[%clk 0:03:02]}  b5 {[%clk 0:02:52]} 10. a4 {[%clk 0:03:02]}  b4 {[%clk 0:02:51]} 11. Nd5 {[%clk 0:03:03]}  Bb7 {[%clk 0:02:44]} 12. Bg5 {[%clk 0:03:03]}  Nbd7 {[%clk 0:02:31]} 13. a5 {[%clk 0:02:59]}  Nxd5 {[%clk 0:01:53]} 14. exd5 {[%clk 0:02:58]}  Nf6 {[%clk 0:01:54]} 15. Nc6 {[%clk 0:02:23]}  Bxc6 {[%clk 0:01:50]} 16. dxc6 {[%clk 0:02:24]}  Qc7 {[%clk 0:01:29]} 17. g3 {[%clk 0:02:19]}  h6 {[%clk 0:01:17]} 18. Bd2 {[%clk 0:02:13]}  Qxc6 {[%clk 0:00:53]} 19. Rxe7 {[%clk 0:02:07]}  Rab8 {[%clk 0:00:44]} 20. Ra7 {[%clk 0:02:01]}  Ra8 {[%clk 0:00:25]} 21. Rxa8 {[%clk 0:01:57]}  Rxa8 {[%clk 0:00:24]} 22. Bxb4 {[%clk 0:01:58]}  Ne4 {[%clk 0:00:20]} 23. c3 {[%clk 0:01:53]}  d5 {[%clk 0:00:18]} 24. Bg2 {[%clk 0:01:53]}  Kh7 {[%clk 0:00:15]} 25. Qa4 {[%clk 0:01:52]}  Qf6 {[%clk 0:00:14]} 26. Qc2 {[%clk 0:01:50]}  Re8 {[%clk 0:00:13]} 27. Re1 {[%clk 0:01:47]}  Qc6 {[%clk 0:00:12]} 28. Re2 {[%clk 0:01:44]}  f5 {[%clk 0:00:10]} 29. f3 {[%clk 0:01:38]}  Ng5 {[%clk 0:00:05]} 30. Rxe8 {[%clk 0:01:37]}  Qxe8 {[%clk 0:00:06]} 31. Qd2 {[%clk 0:01:29]}  d4 {[%clk 0:00:05]} 32. cxd4 {[%clk 0:01:27]}  Bxd4+ {[%clk 0:00:05]} 33. Qxd4 {[%clk 0:01:26]} 1-0


[Site "https://www.chess.com"]